fUSD/lending_fUSD_20260622
["ID","MTS","AMOUNT","RATE_DAILY","PERIOD"]
[426025537,1782119497000,-590.3,0.00027945,2]
[426025529,1782119497000,-797.6,0.00027945,2]
[426025532,1782119497000,-500.0,0.00027945,2]
[426025535,1782119497000,-500.0,0.00027945,2]
[426025536,1782119497000,-500.0,0.00027945,2]
[426025534,1782119497000,-500.0,0.00027945,2]
[426025533,1782119497000,-500.0,0.00027945,2]
[426025542,1782119497000,-595.08,0.00027945,2]
[426025541,1782119497000,-3434.95,0.00027945,2]
[426025543,1782119497000,-500.0,0.00027945,2]
[426025498,1782119497000,-500.0,0.00027945,2]
[426025519,1782119497000,-791.7,0.00027945,2]
[426025526,1782119497000,-6491.92,0.00027945,2]
[426025531,1782119497000,-500.0,0.00027945,2]
[426025515,1782119497000,-484.97657445,0.00027945,2]
[426025517,1782119497000,-325.4932504,0.00027945,2]
[426025496,1782119497000,-500.0,0.00027945,2]
[426025495,1782119497000,-1083.39,0.00027945,2]
[426025499,1782119497000,-500.0,0.00027945,2]
[426025497,1782119497000,-500.0,0.00027945,2]
[426025501,1782119497000,-538.18,0.00027945,2]
[426025503,1782119497000,-500.0,0.00027945,2]
[426025505,1782119497000,-500.0,0.00027945,2]
[426025504,1782119497000,-500.0,0.00027945,2]
[426025510,1782119497000,-500.0,0.00027945,2]
[426025511,1782119497000,-4676.3,0.00027945,2]
[426025502,1782119497000,-500.0,0.00027945,2]
[426025518,1782119497000,-5655.05,0.00027945,2]
[426025507,1782119497000,-500.0,0.00027945,2]
[426025506,1782119497000,-500.0,0.00027945,2]
[426025508,1782119497000,-9518.63,0.00027945,2]
[426025512,1782119497000,-1146.99,0.00027945,2]
[426025513,1782119497000,-818.02,0.00027945,2]
[426025514,1782119497000,-500.0,0.00027945,2]
[426025516,1782119497000,-500.0,0.00027945,2]
[426025521,1782119497000,-500.0,0.00027945,2]
[426025509,1782119497000,-3042.84,0.00027945,2]
[426025523,1782119497000,-539.94,0.00027945,2]
[426025580,1782119498000,-160.0,0.00028,2]
[426025581,1782119498000,-643.0,0.00028,2]
[426025576,1782119498000,-759.24,0.00027974,2]
[426025582,1782119498000,-22500.0,0.00028,2]
[426025573,1782119498000,-508.8,0.0002795,7]
[426025575,1782119498000,-571.29378152,0.00027969,2]
[426025577,1782119498000,-510.47,0.0002798,30]
[426025574,1782119498000,-274.02719378,0.00027964,4]
[426025585,1782119498000,-22436.73047782,0.00028,2]
[426025578,1782119498000,-508.8,0.0002798,30]
[426025579,1782119498000,-571.29378152,0.00027994,2]
[426025590,1782119498000,-1348.38,0.00028035,30]
[426025586,1782119498000,-100000.0,0.00028,2]
[426025583,1782119498000,-5055.1331533,0.00028,3]
[426025587,1782119498000,-510.47,0.0002801,2]
[426025588,1782119498000,-508.8,0.0002801,2]
[426025589,1782119498000,-1320.06,0.00028034,30]
[426025591,1782119498000,-2358.78,0.00028035,30]
[426025596,1782119498000,-160.0,0.0002804,3]
[426025594,1782119498000,-1519.5,0.00028036,30]
[426025592,1782119498000,-571.29378152,0.00028035,2]
[426025595,1782119498000,-2366.05,0.00028036,30]
[426025566,1782119498000,-367.391338,0.00027945,2]
[426025584,1782119498000,-10000.0,0.00028,2]
[426025569,1782119498000,-500.0,0.00027945,2]
[426025548,1782119498000,-500.0,0.00027945,2]
[426025570,1782119498000,-500.0,0.00027945,2]
[426025546,1782119498000,-500.0,0.00027945,2]
[426025597,1782119498000,-510.47,0.0002804,7]
[426025545,1782119498000,-500.0,0.00027945,2]
[426025547,1782119498000,-500.0,0.00027945,2]
[426025549,1782119498000,-500.0,0.00027945,2]
[426025550,1782119498000,-500.0,0.00027945,2]
[426025551,1782119498000,-500.0,0.00027945,2]
[426025554,1782119498000,-557.71,0.00027945,2]
[426025552,1782119498000,-500.0,0.00027945,2]
[426025563,1782119498000,-500.0,0.00027945,2]
[426025553,1782119498000,-500.0,0.00027945,2]
[426025572,1782119498000,-510.47,0.0002795,7]
[426025562,1782119498000,-500.0,0.00027945,2]
[426025555,1782119498000,-500.0,0.00027945,2]
[426025556,1782119498000,-500.0,0.00027945,2]
[426025559,1782119498000,-500.0,0.00027945,2]
[426025561,1782119498000,-500.0,0.00027945,2]
[426025557,1782119498000,-500.0,0.00027945,2]
[426025560,1782119498000,-500.0,0.00027945,2]
[426025558,1782119498000,-10088.44,0.00027945,2]
[426025565,1782119498000,-500.0,0.00027945,2]
[426025567,1782119498000,-500.0,0.00027945,2]
[426025571,1782119498000,-200.0,0.00027948,2]
[426025568,1782119498000,-500.0,0.00027945,2]
[426025564,1782119498000,-2610.22,0.00027945,2]
[426025593,1782119498000,-1911.58,0.00028036,30]
[426025601,1782119498000,-162.70797888,0.00028044,2]
[426025599,1782119498000,-173.94653692,0.00028044,2]
[426025629,1782119498000,-213.68850555,0.00028047,2]
[426025633,1782119498000,-171.53114453,0.00028047,2]
[426025632,1782119498000,-169.57412674,0.00028047,2]
[426025628,1782119498000,-433.51240405,0.00028047,2]
[426025631,1782119498000,-169.5980302,0.00028047,2]
[426025630,1782119498000,-331.14125975,0.00028047,2]
[426025635,1782119498000,-166.26186037,0.00028047,2]
[426025645,1782119498000,-160.18494639,0.00028047,2]
[426025638,1782119498000,-151.25226372,0.00028047,2]
[426025637,1782119498000,-168.65071729,0.00028047,2]
[426025634,1782119498000,-402.54731745,0.00028047,2]
[426025626,1782119498000,-413.34437758,0.00028047,2]
[426025598,1782119498000,-508.8,0.0002804,7]
[426025641,1782119498000,-160.1927639,0.00028047,2]
[426025643,1782119498000,-200.73251052,0.00028047,2]
[426025640,1782119498000,-360.14804539,0.00028047,2]
[426025644,1782119498000,-160.19600444,0.00028047,2]
[426025642,1782119498000,-210.69888625,0.00028047,2]
[426025646,1782119498000,-320.41552137,0.00028047,2]
[426025647,1782119498000,-160.19596395,0.00028047,2]
[426025648,1782119498000,-200.2470613,0.00028047,2]
[426025650,1782119498000,-160.19123635,0.00028047,2]
[426025649,1782119498000,-302.4026551,0.00028047,2]
[426025651,1782119498000,-160.18474602,0.00028047,2]
[426025639,1782119498000,-178.8651807,0.00028047,2]
[426025627,1782119498000,-386.23865292,0.00028047,2]
[426025636,1782119498000,-161.47277774,0.00028047,2]
[426025625,1782119498000,-169.02494456,0.00028047,2]
[426025623,1782119498000,-431.93064657,0.00028047,2]
[426025604,1782119498000,-167.06070444,0.00028044,2]
[426025602,1782119498000,-325.38142337,0.00028044,2]
[426025608,1782119498000,-161.09156798,0.00028044,2]
[426025600,1782119498000,-377.46523506,0.00028044,2]
[426025605,1782119498000,-214.15603543,0.00028044,2]
[426025606,1782119498000,-342.43105064,0.00028044,2]
[426025607,1782119498000,-169.82622295,0.00028044,2]
[426025609,1782119498000,-269.3160961,0.00028044,2]
[426025611,1782119498000,-164.87192418,0.00028044,2]
[426025610,1782119498000,-332.48235309,0.00028044,2]
[426025603,1782119498000,-164.13864154,0.00028044,2]
[426025613,1782119498000,-165.97931285,0.00028044,2]
[426025624,1782119498000,-444.37790968,0.00028047,2]
[426025621,1782119498000,-165.66533792,0.00028047,2]
[426025620,1782119498000,-316.72510286,0.00028047,2]
[426025615,1782119498000,-167.25118125,0.00028044,2]
[426025619,1782119498000,-165.15091334,0.00028047,2]
[426025616,1782119498000,-425.09096757,0.00028044,2]
[426025622,1782119498000,-348.01033001,0.00028047,2]
[426025618,1782119498000,-161.22330889,0.00028047,2]
[426025614,1782119498000,-432.08321516,0.00028044,2]
[426025612,1782119498000,-344.52450479,0.00028044,2]
[426025617,1782119498000,-170.87648473,0.00028047,2]
[426025668,1782119499000,-401.83,0.00028067,30]
[426025673,1782119499000,-10230.72499693,0.000281,2]
[426025674,1782119499000,-10230.72499692,0.000281,2]
[426025678,1782119499000,-510.48,0.0002813,7]
[426025676,1782119499000,-508.8,0.000281,2]
[426025677,1782119499000,-3333.8971,0.00028121,30]
[426025672,1782119499000,-510.47,0.000281,2]
[426025670,1782119499000,-508.8,0.0002807,30]
[426025671,1782119499000,-577.19,0.000281,7]
[426025669,1782119499000,-510.47,0.0002807,30]
[426025667,1782119499000,-512.80349166,0.00028059,2]
[426025665,1782119499000,-160.18322065,0.00028047,2]
[426025652,1782119499000,-448.54305472,0.00028047,2]
[426025664,1782119499000,-260.69555357,0.00028047,2]
[426025663,1782119499000,-160.19993015,0.00028047,2]
[426025660,1782119499000,-160.68697973,0.00028047,2]
[426025662,1782119499000,-159.88166,0.00028047,2]
[426025661,1782119499000,-160.19128101,0.00028047,2]
[426025656,1782119499000,-160.36023829,0.00028047,2]
[426025659,1782119499000,-160.1848239,0.00028047,2]
[426025658,1782119499000,-160.19443857,0.00028047,2]
[426025657,1782119499000,-200.73111344,0.00028047,2]
[426025655,1782119499000,-160.15704922,0.00028047,2]
[426025654,1782119499000,-160.19115474,0.00028047,2]
[426025653,1782119499000,-419.8305531,0.00028047,2]
[426025675,1782119499000,-10230.72499692,0.000281,2]
[426025666,1782119499000,-160.52103147,0.00028047,2]
[426025679,1782119499000,-508.89,0.0002813,7]
[426025682,1782119499000,-677.91143828,0.00028137,2]
[426025681,1782119499000,-824.5798095,0.00028137,2]
[426025680,1782119499000,-523.76780094,0.00028137,2]
[426025708,1782119499000,-531.04706498,0.00028137,2]
[426025706,1782119499000,-163.88536107,0.00028137,2]
[426025704,1782119499000,-694.30239949,0.00028137,2]
[426025703,1782119499000,-731.18064624,0.00028137,2]
[426025707,1782119499000,-468.63609308,0.00028137,2]
[426025700,1782119499000,-320.24987403,0.00028137,2]
[426025701,1782119499000,-319.34888744,0.00028137,2]
[426025702,1782119499000,-836.58720971,0.00028137,2]
[426025699,1782119499000,-748.23425533,0.00028137,2]
[426025698,1782119499000,-507.52112407,0.00028137,2]
[426025695,1782119499000,-552.51661675,0.00028137,2]
[426025693,1782119499000,-438.55266804,0.00028137,2]
[426025705,1782119499000,-797.85425903,0.00028137,2]
[426025694,1782119499000,-301.69644814,0.00028137,2]
[426025683,1782119499000,-527.68851956,0.00028137,2]
[426025697,1782119499000,-619.86189289,0.00028137,2]
[426025684,1782119499000,-839.13633843,0.00028137,2]
[426025685,1782119499000,-666.97213573,0.00028137,2]
[426025690,1782119499000,-327.43495174,0.00028137,2]
[426025689,1782119499000,-512.62536093,0.00028137,2]
[426025688,1782119499000,-311.81461565,0.00028137,2]
[426025686,1782119499000,-538.64634592,0.00028137,2]
[426025691,1782119499000,-660.94438683,0.00028137,2]
[426025692,1782119499000,-584.61615634,0.00028137,2]
[426025696,1782119499000,-457.73343946,0.00028137,2]
[426025687,1782119499000,-640.59296045,0.00028137,2]
[426025733,1782119500000,-511.27658432,0.00028137,2]
[426025739,1782119500000,-742.34104957,0.00028137,2]
[426025734,1782119500000,-788.79194486,0.00028137,2]
[426025737,1782119500000,-381.72040613,0.00028137,2]
[426025735,1782119500000,-306.14343683,0.00028137,2]
[426025736,1782119500000,-607.80276249,0.00028137,2]
[426025740,1782119500000,-800.01359615,0.00028137,2]
[426025742,1782119500000,-722.61648766,0.00028137,2]
[426025748,1782119500000,-392.80262927,0.00028149,2]
[426025743,1782119500000,-763.29494888,0.00028137,2]
[426025744,1782119500000,-350.0,0.00028144,3]
[426025745,1782119500000,-827.53485964,0.00028149,2]
[426025746,1782119500000,-488.64166985,0.00028149,2]
[426025747,1782119500000,-819.69207472,0.00028149,2]
[426025749,1782119500000,-474.61340407,0.00028149,2]
[426025750,1782119500000,-400.58249403,0.00028149,2]
[426025752,1782119500000,-471.03921366,0.00028149,2]
[426025732,1782119500000,-661.69017285,0.00028137,2]
[426025741,1782119500000,-706.53384863,0.00028137,2]
[426025731,1782119500000,-528.80339942,0.00028137,2]
[426025716,1782119500000,-605.87385239,0.00028137,2]
[426025729,1782119500000,-667.94904237,0.00028137,2]
[426025709,1782119500000,-685.28564108,0.00028137,2]
[426025710,1782119500000,-793.12841902,0.00028137,2]
[426025712,1782119500000,-532.10364785,0.00028137,2]
[426025715,1782119500000,-151.42625126,0.00028137,2]
[426025713,1782119500000,-611.56435162,0.00028137,2]
[426025714,1782119500000,-658.37463924,0.00028137,2]
[426025711,1782119500000,-811.54703333,0.00028137,2]
[426025717,1782119500000,-325.86854621,0.00028137,2]
[426025751,1782119500000,-768.76596851,0.00028149,2]
[426025727,1782119500000,-528.34164195,0.00028137,2]
[426025718,1782119500000,-766.96499731,0.00028137,2]
[426025720,1782119500000,-310.45876019,0.00028137,2]
[426025723,1782119500000,-794.66350748,0.00028137,2]
[426025721,1782119500000,-722.84825884,0.00028137,2]
[426025722,1782119500000,-528.47501873,0.00028137,2]
[426025725,1782119500000,-468.06817587,0.00028137,2]
[426025724,1782119500000,-858.63166273,0.00028137,2]
[426025726,1782119500000,-656.83837852,0.00028137,2]
[426025730,1782119500000,-688.95037613,0.00028137,2]
[426025728,1782119500000,-573.59784389,0.00028137,2]
[426025719,1782119500000,-782.7981895,0.00028137,2]
[426025753,1782119500000,-747.54548557,0.00028149,2]
[426025738,1782119500000,-400.62412191,0.00028137,2]
[426025757,1782119500000,-369.17189854,0.00028149,2]
[426025780,1782119500000,-500.0,0.00028219,2]
[426025779,1782119500000,-500.0,0.00028219,2]
[426025783,1782119500000,-500.0,0.00028219,2]
[426025781,1782119500000,-500.0,0.00028219,2]
[426025784,1782119500000,-755.89,0.00028219,2]
[426025785,1782119500000,-500.0,0.00028219,2]
[426025787,1782119500000,-500.0,0.00028219,2]
[426025797,1782119500000,-649.63,0.00028219,2]
[426025786,1782119500000,-500.0,0.00028219,2]
[426025789,1782119500000,-500.0,0.00028219,2]
[426025790,1782119500000,-500.0,0.00028219,2]
[426025792,1782119500000,-500.0,0.00028219,2]
[426025788,1782119500000,-179.76236904,0.00028219,2]
[426025791,1782119500000,-500.0,0.00028219,2]
[426025793,1782119500000,-500.0,0.00028219,2]
[426025796,1782119500000,-700.0,0.00028219,2]
[426025795,1782119500000,-500.0,0.00028219,2]
[426025798,1782119500000,-500.0,0.00028219,2]
[426025754,1782119500000,-636.10934696,0.00028149,2]
[426025776,1782119500000,-500.0,0.00028219,2]
[426025778,1782119500000,-500.0,0.00028219,2]
[426025794,1782119500000,-500.0,0.00028219,2]
[426025777,1782119500000,-500.0,0.00028219,2]
[426025758,1782119500000,-192.29802059,0.0002815,2]
[426025782,1782119500000,-500.0,0.00028219,2]
[426025756,1782119500000,-805.67515503,0.00028149,2]
[426025755,1782119500000,-848.34649111,0.00028149,2]
[426025765,1782119500000,-207.00921376,0.00028189,2]
[426025760,1782119500000,-576.96149084,0.0002815,2]
[426025767,1782119500000,-1320.06,0.00028195,7]
[426025764,1782119500000,-493.419401,0.00028181,7]
[426025762,1782119500000,-563.22220372,0.0002815,2]
[426025766,1782119500000,-200.0,0.00028194,2]
[426025759,1782119500000,-759.78819258,0.0002815,2]
[426025763,1782119500000,-541.30795334,0.0002815,2]
[426025769,1782119500000,-1519.5,0.00028196,7]
[426025768,1782119500000,-1348.38,0.00028196,7]
[426025770,1782119500000,-2366.05,0.00028196,7]
[426025774,1782119500000,-500.0,0.00028219,2]
[426025775,1782119500000,-500.0,0.00028219,2]
[426025772,1782119500000,-333.41680622,0.00028196,120]
[426025761,1782119500000,-421.87143279,0.0002815,2]
[426025773,1782119500000,-1911.58,0.00028197,7]
[426025771,1782119500000,-2358.78,0.00028196,7]
[426025844,1782119501000,-500.0,0.00028219,2]
[426025837,1782119501000,-801.22,0.00028219,2]
[426025838,1782119501000,-500.0,0.00028219,2]
[426025846,1782119501000,-500.0,0.00028219,2]
[426025835,1782119501000,-159.03189395,0.00028219,2]
[426025830,1782119501000,-500.0,0.00028219,2]
[426025829,1782119501000,-662.46,0.00028219,2]
[426025823,1782119501000,-500.0,0.00028219,2]
[426025828,1782119501000,-538.1547155,0.00028219,2]
[426025842,1782119501000,-627.05,0.00028219,2]
[426025834,1782119501000,-500.0,0.00028219,2]
[426025836,1782119501000,-500.0,0.00028219,2]
[426025841,1782119501000,-500.0,0.00028219,2]
[426025851,1782119501000,-500.0,0.00028219,2]
[426025843,1782119501000,-500.0,0.00028219,2]
[426025840,1782119501000,-547.4,0.00028219,2]
[426025845,1782119501000,-1165.61,0.00028219,2]
[426025847,1782119501000,-594.11,0.00028219,2]
[426025850,1782119501000,-500.0,0.00028219,2]
[426025853,1782119501000,-154.879024,0.00028219,7]
[426025849,1782119501000,-154.879024,0.00028219,7]
[426025848,1782119501000,-154.879024,0.00028219,7]
[426025854,1782119501000,-500.0,0.00028219,2]
[426025856,1782119501000,-154.879034,0.00028219,7]
[426025855,1782119501000,-624.72,0.00028219,2]
[426025832,1782119501000,-500.0,0.00028219,2]
[426025839,1782119501000,-500.0,0.00028219,2]
[426025825,1782119501000,-500.0,0.00028219,2]
[426025799,1782119501000,-547.08,0.00028219,2]
[426025831,1782119501000,-500.0,0.00028219,2]
[426025800,1782119501000,-500.0,0.00028219,2]
[426025805,1782119501000,-500.0,0.00028219,2]
[426025803,1782119501000,-500.0,0.00028219,2]
[426025809,1782119501000,-500.0,0.00028219,2]
[426025802,1782119501000,-613.47,0.00028219,2]
[426025806,1782119501000,-721.94,0.00028219,2]
[426025801,1782119501000,-500.0,0.00028219,2]
[426025807,1782119501000,-500.0,0.00028219,2]
[426025804,1782119501000,-500.0,0.00028219,2]
[426025810,1782119501000,-500.0,0.00028219,2]
[426025808,1782119501000,-500.0,0.00028219,2]
[426025812,1782119501000,-500.0,0.00028219,2]
[426025827,1782119501000,-500.0,0.00028219,2]
[426025811,1782119501000,-509.16448684,0.00028219,2]
[426025816,1782119501000,-500.0,0.00028219,2]
[426025821,1782119501000,-500.0,0.00028219,2]
[426025817,1782119501000,-500.0,0.00028219,2]
[426025819,1782119501000,-500.0,0.00028219,2]
[426025820,1782119501000,-503.07549493,0.00028219,2]
[426025813,1782119501000,-500.0,0.00028219,2]
[426025818,1782119501000,-500.0,0.00028219,2]
[426025815,1782119501000,-500.0,0.00028219,2]
[426025822,1782119501000,-500.0,0.00028219,2]
[426025826,1782119501000,-588.29,0.00028219,2]
[426025824,1782119501000,-500.0,0.00028219,2]
[426025833,1782119501000,-500.0,0.00028219,2]
[426025814,1782119501000,-500.0,0.00028219,2]
[426025858,1782119501000,-500.0,0.00028219,2]
[426025852,1782119501000,-894.92,0.00028219,2]
[426025860,1782119501000,-500.0,0.00028219,2]
[426025887,1782119501000,-500.0,0.00028219,2]
[426025892,1782119501000,-500.0,0.00028219,2]
[426025891,1782119501000,-500.0,0.00028219,2]
[426025896,1782119501000,-500.0,0.00028219,2]
[426025894,1782119501000,-552.71713431,0.00028219,2]
[426025898,1782119501000,-500.0,0.00028219,2]
[426025904,1782119501000,-500.0,0.00028219,2]
[426025900,1782119501000,-911.74,0.00028219,2]
[426025899,1782119501000,-1222.37,0.00028219,2]
[426025897,1782119501000,-500.0,0.00028219,2]
[426025895,1782119501000,-500.0,0.00028219,2]
[426025902,1782119501000,-1215.39,0.00028219,2]
[426025906,1782119501000,-151.0,0.00028219,7]
[426025903,1782119501000,-761.7,0.00028219,2]
[426025901,1782119501000,-500.0,0.00028219,2]
[426025905,1782119501000,-571.02,0.00028219,2]
[426025917,1782119501000,-151.0,0.00028219,3]
[426025916,1782119501000,-500.0,0.00028219,2]
[426025908,1782119501000,-500.0,0.00028219,2]
[426025909,1782119501000,-500.0,0.00028219,2]
[426025907,1782119501000,-500.96723269,0.00028219,2]
[426025910,1782119501000,-538.75,0.00028219,2]
[426025912,1782119501000,-1060.0,0.00028219,2]
[426025915,1782119501000,-151.0,0.00028219,3]
[426025913,1782119501000,-151.0,0.00028219,3]
[426025911,1782119501000,-218.17333706,0.00028219,2]
[426025914,1782119501000,-500.0,0.00028219,2]
[426025889,1782119501000,-500.0,0.00028219,2]
[426025890,1782119501000,-151.0,0.00028219,7]
[426025857,1782119501000,-500.0,0.00028219,2]
[426025886,1782119501000,-151.0,0.00028219,7]
[426025859,1782119501000,-664.27,0.00028219,2]
[426025862,1782119501000,-500.0,0.00028219,2]
[426025861,1782119501000,-401.43057818,0.00028219,2]
[426025866,1782119501000,-500.0,0.00028219,2]
[426025869,1782119501000,-500.0,0.00028219,2]
[426025864,1782119501000,-500.0,0.00028219,2]
[426025868,1782119501000,-721.65,0.00028219,2]
[426025888,1782119501000,-270.648407,0.00028219,7]
[426025863,1782119501000,-500.0,0.00028219,2]
[426025865,1782119501000,-500.0,0.00028219,2]
[426025870,1782119501000,-225.33153973,0.00028219,2]
[426025872,1782119501000,-500.0,0.00028219,2]
[426025871,1782119501000,-500.0,0.00028219,2]
[426025867,1782119501000,-776.0,0.00028219,2]
[426025881,1782119501000,-500.0,0.00028219,2]
[426025877,1782119501000,-500.0,0.00028219,2]
[426025893,1782119501000,-662.21,0.00028219,2]
[426025882,1782119501000,-500.0,0.00028219,2]
[426025885,1782119501000,-1260.42,0.00028219,2]
[426025883,1782119501000,-500.0,0.00028219,2]
[426025878,1782119501000,-321.34019186,0.00028219,2]
[426025884,1782119501000,-517.36,0.00028219,2]
[426025880,1782119501000,-500.0,0.00028219,2]
[426025876,1782119501000,-2003.52,0.00028219,2]
[426025879,1782119501000,-500.0,0.00028219,2]
[426025874,1782119501000,-500.0,0.00028219,2]
[426025873,1782119501000,-500.0,0.00028219,2]
[426025875,1782119501000,-500.0,0.00028219,2]
[426025962,1782119502000,-500.0,0.00028219,2]
[426025956,1782119502000,-500.0,0.00028219,2]
[426025966,1782119502000,-500.0,0.00028219,2]
[426025954,1782119502000,-500.0,0.00028219,2]
[426025965,1782119502000,-500.0,0.00028219,2]
[426025949,1782119502000,-851.69,0.00028219,2]
[426025951,1782119502000,-500.0,0.00028219,2]
[426025950,1782119502000,-500.0,0.00028219,2]
[426025947,1782119502000,-2921.9,0.00028219,2]
[426025948,1782119502000,-500.0,0.00028219,2]
[426025955,1782119502000,-500.0,0.00028219,2]
[426025957,1782119502000,-779.48,0.00028219,2]
[426025972,1782119502000,-500.0,0.00028219,2]
[426025961,1782119502000,-500.0,0.00028219,2]
[426025959,1782119502000,-645.46,0.00028219,2]
[426025960,1782119502000,-4305.18,0.00028219,2]
[426025964,1782119502000,-500.0,0.00028219,2]
[426025963,1782119502000,-547.69619231,0.00028219,2]
[426025967,1782119502000,-765.97,0.00028219,2]
[426025968,1782119502000,-518.576259,0.00028219,2]
[426025973,1782119502000,-500.0,0.00028219,2]
[426025971,1782119502000,-151.0,0.00028219,7]
[426025978,1782119502000,-1643.99,0.00028219,2]
[426025969,1782119502000,-500.0,0.00028219,2]
[426025970,1782119502000,-500.0,0.00028219,2]
[426025945,1782119502000,-524.42,0.00028219,2]
[426025958,1782119502000,-500.0,0.00028219,2]
[426025942,1782119502000,-500.0,0.00028219,2]
[426025933,1782119502000,-500.0,0.00028219,2]
[426025953,1782119502000,-500.0,0.00028219,2]
[426025975,1782119502000,-525.16,0.00028219,2]
[426025918,1782119502000,-500.0,0.00028219,2]
[426025919,1782119502000,-500.0,0.00028219,2]
[426025929,1782119502000,-500.0,0.00028219,2]
[426025925,1782119502000,-500.0,0.00028219,2]
[426025926,1782119502000,-153.6018418,0.00028219,2]
[426025922,1782119502000,-616.73,0.00028219,2]
[426025924,1782119502000,-500.0,0.00028219,2]
[426025923,1782119502000,-563.02581302,0.00028219,2]
[426025921,1782119502000,-500.0,0.00028219,2]
[426025920,1782119502000,-529.3,0.00028219,2]
[426025927,1782119502000,-500.0,0.00028219,2]
[426025928,1782119502000,-636.52,0.00028219,2]
[426025931,1782119502000,-525.1646694,0.00028219,2]
[426025930,1782119502000,-500.0,0.00028219,2]
[426025932,1782119502000,-507.63,0.00028219,2]
[426025936,1782119502000,-500.0,0.00028219,2]
[426025934,1782119502000,-1212.61,0.00028219,2]
[426025935,1782119502000,-500.0,0.00028219,2]
[426025937,1782119502000,-500.0,0.00028219,2]
[426025938,1782119502000,-1302.58,0.00028219,2]
[426025940,1782119502000,-151.0,0.00028219,7]
[426025939,1782119502000,-500.0,0.00028219,2]
[426025941,1782119502000,-965.81,0.00028219,2]
[426025943,1782119502000,-553.44,0.00028219,2]
[426025952,1782119502000,-506.12437784,0.00028219,2]
[426025944,1782119502000,-500.0,0.00028219,2]
[426025946,1782119502000,-533.69,0.00028219,2]
[426025977,1782119502000,-500.0,0.00028219,2]
[426025976,1782119502000,-500.0,0.00028219,2]
[426025979,1782119502000,-151.0,0.00028219,7]
[426026007,1782119502000,-500.0,0.00028219,2]
[426026004,1782119502000,-561.33,0.00028219,2]
[426026006,1782119502000,-500.0,0.00028219,2]
[426026009,1782119502000,-500.0,0.00028219,2]
[426026014,1782119502000,-500.0,0.00028219,2]
[426026017,1782119502000,-523.99,0.00028219,2]
[426026019,1782119502000,-500.0,0.00028219,2]
[426026016,1782119502000,-879.31,0.00028219,2]
[426026018,1782119502000,-500.0,0.00028219,2]
[426026015,1782119502000,-500.0,0.00028219,2]
[426026023,1782119502000,-500.0,0.00028219,2]
[426026021,1782119502000,-352.10327411,0.00028219,2]
[426026008,1782119502000,-500.0,0.00028219,2]
[426026024,1782119502000,-508.67006547,0.00028219,2]
[426026022,1782119502000,-4687.67,0.00028219,2]
[426026025,1782119502000,-1083.19,0.00028219,2]
[426026027,1782119502000,-500.0,0.00028219,2]
[426026032,1782119502000,-869.72,0.00028219,2]
[426026026,1782119502000,-500.0,0.00028219,2]
[426026028,1782119502000,-501.58,0.00028219,2]
[426026029,1782119502000,-500.0,0.00028219,2]
[426026031,1782119502000,-705.3,0.00028219,2]
[426026030,1782119502000,-500.0,0.00028219,2]
[426026035,1782119502000,-500.0,0.00028219,2]
[426026033,1782119502000,-500.0,0.00028219,2]
[426026036,1782119502000,-500.0,0.00028219,2]
[426026020,1782119502000,-500.0,0.00028219,2]
[426026010,1782119502000,-505.10894677,0.00028219,2]